Cogmind - Beta 9.6 *** ADVENTURER MODE // 2020.07.25 @ 13:28:24 Player: Plexion Result: Destroyed by D-63 Destroyer with Heavy Rocket Launcher Performance ------------- Evolutions (4) 2000 Regions Visited (12) 2400 Robots Destroyed (125) 625 Value Destroyed (4812) 4812 Prototype IDs (19) 380 Alien Tech Used (0) 0 Bonus (761) 761 TOTAL SCORE: 10978 Bonus ------- High Alert Combat Kills 187 Follower Combat Kills 1096 Met Data Miner 300 Friendly Fire -822 Cogmind --------- Core Integrity 0/850 Matter 300/300 Energy 100/100 System Corruption 5% Temperature Cool (0) Movement Core (300) Ox5 Location -5/Proximity Caves Parts ------- > --- POWER (1) -------- (None) > --- PROPULSION (4) --- (None) > --- UTILITY (7) ------ Large Storage Unit Enhanced Optical Array Improved Melee Analysis Suite > --- WEAPON (3) ------- (None) > --- INVENTORY (10) --- Large Storage Unit Grenade Launcher Great Maul Axe Makeshift Spear Heavy Pick Peak State ------------ > --- POWER ------------ Light Angular Momentum Engine > --- PROPULSION ------- Improved Gravmag System Improved Gravmag System Improved Gravmag System Improved Gravmag System > --- UTILITY ---------- Small Storage Unit Large Storage Unit Improved Melee Analysis Suite Advanced Melee Analysis Suite Microactuators Layered Medium Armor Plating Light Regenerative Plating > --- WEAPON ----------- Great Axe Power Sword Power Sword > --- INVENTORY -------- Light Fission Core Gravmag System Gravmag System Large Storage Unit Enhanced Optical Array Improved Melee Analysis Suite Improved Maneuvering Thrusters Hardened Medium Armor Plating Improved Light Armor Plating Grenade Launcher Katana Heavy Pick [Rating: 69] Favorites ----------- Power Light Nuclear Core Engine Ion Engine Power Core Light Nuclear Core Reactor Cold Fusion Reactor Propulsion Improved Gravmag System Leg Improved Carbon-fiber Leg Wheel Wheel Hover Unit Improved Gravmag System Utility Large Storage Unit Device Microactuators Storage Large Storage Unit Processor Improved Melee Analysis Suite Protection Hardened Medium Armor Plating Weapon Great Axe Energy Gun Small Laser Ballistic Gun Light Assault Rifle Launcher Grenade Launcher Impact Weapon Hammer Slashing Weapon Great Axe Piercing Weapon Heavy Pick Build | -11 -10 -10 -10 -9 -8 -7 -7 -6 -6 -6 -6 -5 ------- Run | Scr Mat Min Exi Min Mat Fac Sto Fac Low Low Dat Pro Slots Evolved 8 | . . . . . 4 2 . 2 . . . . Power . | . . . . . . . . . . . . . Propulsion 2 | . . . . . 1 . . 1 . . . . Utility 5 | . . . . . 2 2 . 1 . . . . Weapon 1 | . . . . . 1 . . . . . . . Parts Attached 130 | 6 6 3 . 2 5 44 5 43 1 9 . 6 Power 18 | 1 . . . . . 5 1 7 1 2 . 1 Engine 6 | 1 . . . . . 2 . 2 . 1 . . Core 10 | . . . . . . 3 1 3 1 1 . 1 Reactor 2 | . . . . . . . . 2 . . . . Propulsion 44 | 2 . . . . 2 15 3 16 . 5 . 1 Treads . | . . . . . . . . . . . . . Leg 18 | . . . . . 2 13 3 . . . . . Wheel 2 | 2 . . . . . . . . . . . . Hover 24 | . . . . . . 2 . 16 . 5 . 1 Flight . | . . . . . . . . . . . . . Utility 41 | 1 2 . . . 3 16 1 13 . 2 . 3 Device 7 | . . . . . 1 3 . 2 . . . 1 Storage 4 | 1 2 . . . . . . 1 . . . . Processor 11 | . . . . . 1 5 . 3 . 1 . 1 Hackware . | . . . . . . . . . . . . . Protection 19 | . . . . . 1 8 1 7 . 1 . 1 Artifact . | . . . . . . . . . . . . . Weapon 27 | 2 4 3 . 2 . 8 . 7 . . . 1 Energy Gun 4 | 2 2 . . . . . . . . . . . Energy Cannon . | . . . . . . . . . . . . . Ballistic Gun 2 | . 1 1 . . . . . . . . . . Ballistic Cannon . | . . . . . . . . . . . . . Launcher 1 | . . . . 1 . . . . . . . . Special Weapon . | . . . . . . . . . . . . . Impact Weapon 2 | . . 1 . 1 . . . . . . . . Slashing Weapon 17 | . 1 1 . . . 8 . 6 . . . 1 Piercing Weapon 1 | . . . . . . . . 1 . . . . Special Melee Weapon . | . . . . . . . . . . . . . Unidentified Prototypes 6 | . . . . . . 1 1 4 . . . . Parts Lost 41 | . 2 1 . . 1 3 1 8 1 6 . 18 Power 7 | . . . . . . 1 1 1 1 1 . 2 Propulsion 14 | . . . . . 1 1 . 4 . 3 . 5 Utility 11 | . . . . . . 1 . 1 . 2 . 7 Weapon 9 | . 2 1 . . . . . 2 . . . 4 Highest Loss Streak 9 | . 1 1 . . 1 1 1 6 1 4 . 9 Average Slot Usage (%) 95 | . 90 100 100 100 87 96 99 97 99 89 100 86 Engine 3 | . 14 14 14 14 9 2 . 2 1 . 6 2 Core 3 | . . . . . . 4 6 3 4 2 . 2 Leg 11 | . . . . . 12 22 23 . . . . . Wheel 3 | . 28 28 28 28 14 . . . . . . . Hover 8 | . . . . . . . . 23 26 20 26 20 Device 5 | . . . . . 7 4 7 5 6 6 6 11 Storage 15 | . 19 28 28 28 18 15 15 13 13 13 13 13 Processor 10 | . . . . . . 12 7 12 13 12 13 12 Protection 10 | . . . . . 7 11 15 12 13 12 13 2 Impact Weapon 1 | . . 10 14 14 9 2 . . . . . . Slashing Weapon 17 | . 1 10 14 14 9 17 23 19 20 20 20 18 Naked Turns . | . . . . . . . . . . . . . Heaviest Build 67 | 11 39 41 41 41 50 67 62 58 53 54 54 54 Greatest Support 58 | 20 20 20 20 20 20 58 56 56 56 56 53 53 Greatest Overweight (x) 11 | . 1 2 2 2 4 3 1 1 . 1 1 11 Average Overweight (x) . | . . 1 2 2 3 1 1 . . . 1 . Largest Inventory Capacity 16 | 6 16 16 16 16 16 16 16 16 12 12 12 12 Average Capacity 14 | 5 10 16 16 16 16 16 16 12 12 12 12 11 Most Carried 16 | 4 6 8 11 11 10 16 16 16 12 11 9 9 Average Carried 12 | 2 5 7 10 11 9 14 15 11 11 9 9 5 Final Capacity 16 | 6 16 16 16 16 16 16 16 12 12 12 12 10 Final Carried 16 | 4 6 8 11 11 10 16 16 12 11 9 9 6 Class Distribution -------------------- 83% | Mutant 12% | Assassin 4% | Commander-Mutant Dominant Class ---------------- Mutant | -10/Materials Mutant | -10/Mines Mutant | -10/Exiles Mutant | -9/Mines Mutant | -8/Materials Mutant | -7/Factory Mutant | -7/Storage Mutant | -6/Factory Mutant | -6/Lower Caves Mutant | -6/Lower Caves Mutant | -6/Data Miner Mutant | -5/Proximity Caves Resources | -11 -10 -10 -10 -9 -8 -7 -7 -6 -6 -6 -6 -5 ----------- Run | Scr Mat Min Exi Min Mat Fac Sto Fac Low Low Dat Pro Matter Collected 1650 | 170 76 90 . 30 45 505 112 436 15 111 . 60 Remotely . | . . . . . . . . . . . . . Salvage Created 6078 | . 149 59 . 125 110 1670 791 1662 162 1082 . 268 Parts 292 | . 21 3 . 8 3 81 55 63 8 44 . 6 Haulers Intercepted 7 | . . . . . . 2 4 1 . . . . Recyclers Shooed 3 | . 1 . . 1 . . 1 . . . . . Parts Field Recycled . | . . . . . . . . . . . . . Retrieved Matter . | . . . . . . . . . . . . . Parts Self-Destructed 52 | . . . . . . . . . 8 36 . 8 Prevented . | . . . . . . . . . . . . . Kills | -11 -10 -10 -10 -9 -8 -7 -7 -6 -6 -6 -6 -5 ------- Run | Scr Mat Min Exi Min Mat Fac Sto Fac Low Low Dat Pro Combat Hostiles Destroyed 102 | . 8 . . 2 2 29 11 26 3 16 . 5 Melee 91 | . . . . . 1 29 11 26 3 16 . 5 Guns 8 | . 8 . . . . . . . . . . . AOE 2 | . . . . 2 . . . . . . . . Classes Destroyed 13 | . 2 1 . . 2 5 . 1 . 2 . . Worker 2 | . . . . . . 1 1 . . . . . Builder 3 | . 1 . . 1 . . 1 . . . . . Hauler 7 | . . . . . . 2 4 1 . . . . Recycler 3 | . . 1 . 1 . . 1 . . . . . Watcher 4 | . . . . . . 2 . 2 . . . . Swarmer 25 | . 8 . . 2 . 4 4 3 . 1 . 3 Grunt 39 | . . . . . 1 12 5 13 . 7 . 1 Brawler 3 | . . . . . . 1 . 1 . 1 . . Duelist 4 | . . . . . . . . . . 4 . . Sentry 18 | . . . . . 1 6 1 6 1 2 . 1 Hunter 1 | . . . . . . . . 1 . . . . Programmer 13 | . . . . . . 6 2 2 2 1 . . Packrat 1 | . . . . . . . . . . 1 . . Thief 2 | . . . . . . . . . . 2 . . Best Kill Streak 10 | . 6 1 . 4 1 5 3 5 2 10 . 3 Combat Bots Only 10 | . 5 . . 2 1 5 3 5 2 10 . 3 Max Kills in Single Turn 2 | . 2 1 . 2 1 1 1 1 1 2 . 1 Gunslinging 1 | . 1 . . . . . . . . . . . Exploded 2 | . . . . 2 . . . . . . . . Melee 1 | . . . . . 1 1 1 1 1 1 . 1 Uniques/NPCs Destroyed . | . . . . . . . . . . . . . Combat | -11 -10 -10 -10 -9 -8 -7 -7 -6 -6 -6 -6 -5 -------- Run | Scr Mat Min Exi Min Mat Fac Sto Fac Low Low Dat Pro Damage Taken 7044 | . 241 71 . . 74 1833 454 1699 155 1099 . 1418 Core 1194 | . 37 26 . . . 207 68 174 35 183 . 464 Absorbed by Shields . | . . . . . . . . . . . . . Core Remaining (%) 83 | 100 . . . 74 100 . 60 . . . . . Volleys Fired 19 | . 18 . . 1 . . . . . . . . Largest 2 | . 2 . . 1 . . . . . . . . Hottest 80 | . 80 . . 30 . . . . . . . . Shots Fired 29 | . 28 . . 1 . . . . . . . . Gun 28 | . 28 . . . . . . . . . . . Cannon . | . . . . . . . . . . . . . Launcher 1 | . . . . 1 . . . . . . . . Special . | . . . . . . . . . . . . . Kinetic 4 | . 4 . . . . . . . . . . . Thermal 24 | . 24 . . . . . . . . . . . Explosive 1 | . . . . 1 . . . . . . . . Electromagnetic . | . . . . . . . . . . . . . Robot Hit Streak 7 | . 7 . . 2 . . . . . . . . Robot Miss Streak 1 | . 1 . . . . . . . . . . . Penetration Max . | . . . . . . . . . . . . . Secondary Targets 1 | . 1 . . . . . . . . . . . Max Gunslinging Chain 1 | . 1 . . . . . . . . . . . Shots Hit Robots 419 | . 20 6 . 5 9 126 45 115 12 63 . 18 Core Hits 165 | . 10 1 . 6 1 45 19 44 4 27 . 8 Critical Hits 21 | . . . . . . 7 3 7 . 4 . . Critical Kills 6 | . . . . . . 2 . 1 . 3 . . Critical Parts Destroyed 15 | . . . . . . 5 3 6 . 1 . . Melee Attacks 718 | . 4 18 . 4 15 187 122 226 21 72 . 49 Impact 19 | . . 4 . 3 7 5 . . . . . . Slashing 695 | . 4 14 . 1 8 182 122 222 21 72 . 49 Piercing 4 | . . . . . . . . 4 . . . . Sneak Attacks 35 | . . 2 . 4 . 5 18 1 . 4 . 1 Combat Hostiles 4 | . . . . . . . 3 . . . . 1 Follow-up Attacks 91 | . . 1 . 1 3 32 6 28 3 13 . 4 Damage Inflicted 18022 | . 221 249 . 301 187 4678 3286 4882 531 2717 . 970 Guns 198 | . 198 . . . . . . . . . . . Cannons . | . . . . . . . . . . . . . Explosions 65 | . . . . 65 . . . . . . . . Melee 17739 | . 23 229 . 236 187 4678 3286 4882 531 2717 . 970 Ramming 20 | . . 20 . . . . . . . . . . Kinetic 20 | . 20 . . . . . . . . . . . Thermal 178 | . 178 . . . . . . . . . . . Explosive 65 | . . . . 65 . . . . . . . . Electromagnetic . | . . . . . . . . . . . . . Impact 295 | . . 15 . 164 48 68 . . . . . . Slashing 17331 | . 23 214 . 72 139 4610 3286 4769 531 2717 . 970 Piercing 113 | . . . . . . . . 113 . . . . Highest Corruption 11 | . . 2 2 2 . 10 11 4 4 5 5 5 Average Corruption 5 | . . 2 2 2 . 5 10 4 4 4 5 5 Corruption Purged . | . . . . . . . . . . . . . Effects 201 | . . 6 . 1 . 55 75 24 4 17 2 17 Message Errors 41 | . . 2 . . . 8 17 4 3 3 1 3 Matter Fused 29 | . . . . . . 11 8 4 . 5 . 1 Heat Flow Errors 14 | . . . . . . 4 5 3 . 1 . 1 Energy Discharges 20 | . . 1 . . . 9 5 2 1 . . 2 Parts Rejected 4 | . . . . . . 2 . 1 . 1 . . Data Loss (minor) 37 | . . 3 . 1 . 7 12 4 . 3 1 6 Data Loss (major) 3 | . . . . . . . 2 . . . . 1 Alerts 3 | . . . . . . 1 2 . . . . . Misdirections 10 | . . . . . . 3 7 . . . . . Targeting Errors 40 | . . . . . . 10 17 6 . 4 . 3 Overload Shots . | . . . . . . . . . . . . . Overflow Damage 1351 | . . 33 . 74 3 206 498 249 2 199 . 87 Projectiles . | . . . . . . . . . . . . . Explosions . | . . . . . . . . . . . . . Melee 1351 | . . 33 . 74 3 206 498 249 2 199 . 87 Knockbacks 2 | . . 1 . 1 . . . . . . . . Impact 2 | . . 1 . 1 . . . . . . . . Kinetic . | . . . . . . . . . . . . . Secondary . | . . . . . . . . . . . . . Self-Inflicted Damage 10 | . . 10 . . . . . . . . . . Shots . | . . . . . . . . . . . . . Rammed 1 | . . 1 . . . . . . . . . . Targets Rammed 1 | . . 1 . . . . . . . . . . Kicked . | . . . . . . . . . . . . . Crushed . | . . . . . . . . . . . . . Highest Temperature 276 | . 36 . . . . 276 253 220 2 134 . 127 Average Temperature 82 | . 21 . . . . 104 104 82 2 76 . 72 Received Heat Transfer 1845 | . . 27 . . 45 690 126 579 24 336 . 18 Siege Activations . | . . . . . . . . . . . . . Robots Corrupted . | . . . . . . . . . . . . . Combat Hostiles . | . . . . . . . . . . . . . Parts Fried 4 | . . . . 2 2 . . . . . . . Impact Corruptions 7 | . . 1 . 4 1 1 . . . . . . Robots Melted . | . . . . . . . . . . . . . Combat Hostiles . | . . . . . . . . . . . . . Parts Melted 1 | . . . . . . . . . . 1 . . Heat Transferred 400 | . 400 . . . . . . . . . . . Parts Sabotaged . | . . . . . . . . . . . . . Parts Stolen 2 | . . . . . . . . . . 2 . . Parts Stripped . | . . . . . . . . . . . . . Power Chain Reactions . | . . . . . . . . . . . . . Missiles Intercepted . | . . . . . . . . . . . . . Alert | -11 -10 -10 -10 -9 -8 -7 -7 -6 -6 -6 -6 -5 ------- Run | Scr Mat Min Exi Min Mat Fac Sto Fac Low Low Dat Pro Peak Influence 783 | . 229 127 . 65 114 590 783 391 . . . . Average Influence 226 | . 138 79 . 58 52 155 471 245 . . . . Maximum Alert Level 3 | . 1 . . . . 2 3 1 . . . . Low Security (%) 52 | 100 77 100 . 100 100 78 7 21 . . . . Level 1 29 | . 22 . . . . 6 25 78 . . . . Level 2 15 | . . . . . . 14 50 . . . . . Level 3 3 | . . . . . . . 16 . . . . . Level 4 . | . . . . . . . . . . . . . Level 5 . | . . . . . . . . . . . . . High Security . | . . . . . . . . . . . . . Max Security . | . . . . . . . . . . . . . Squads Dispatched 25 | . . . . . 1 9 7 7 . 1 . . Investigation 1 | . . . . . 1 . . . . . . . Extermination 12 | . . . . . . 7 3 2 . . . . Reinforcement 6 | . . . . . . 2 2 2 . . . . Assault 2 | . . . . . . . 1 . . 1 . . Garrison 4 | . . . . . . . 1 3 . . . . Intercept . | . . . . . . . . . . . . . Construction Impeded . | . . . . . . . . . . . . . Haulers Reinforced 2 | . . . . . . . 2 . . . . . Stealth | -11 -10 -10 -10 -9 -8 -7 -7 -6 -6 -6 -6 -5 --------- Run | Scr Mat Min Exi Min Mat Fac Sto Fac Low Low Dat Pro Distress Signals 11 | . 1 . . . . 2 2 1 . . . 5 Communications Jammed . | . . . . . . . . . . . . . Distress Signals . | . . . . . . . . . . . . . Times Spotted 211 | . 15 2 . 3 6 63 42 42 3 21 . 14 Peak Tracking Total 10 | . 4 2 . 2 3 5 5 6 2 10 . 4 Tactical Retreats 26 | . 4 . . . 1 9 . 8 . 2 . 2 Traps | -11 -10 -10 -10 -9 -8 -7 -7 -6 -6 -6 -6 -5 ------- Run | Scr Mat Min Exi Min Mat Fac Sto Fac Low Low Dat Pro Traps Triggered 9 | . 1 . . . . 4 2 2 . . . . Indirectly . | . . . . . . . . . . . . . Trap Hack Attempts . | . . . . . . . . . . . . . Triggered . | . . . . . . . . . . . . . Disarmed . | . . . . . . . . . . . . . Reprogrammed . | . . . . . . . . . . . . . Reused . | . . . . . . . . . . . . . Traps Extracted . | . . . . . . . . . . . . . Installed . | . . . . . . . . . . . . . Triggered 2 | . . . . . . . . . . 2 . . Machines | -11 -10 -10 -10 -9 -8 -7 -7 -6 -6 -6 -6 -5 ---------- Run | Scr Mat Min Exi Min Mat Fac Sto Fac Low Low Dat Pro Machines Disabled 5 | . . . . . . . 5 . . . . . Max in Single Turn 1 | . . . . . . . 1 . . . . . Garrison Access 1 | . . . . . . . 1 . . . . . Machines Sabotaged . | . . . . . . . . . . . . . Garrisons Compromised . | . . . . . . . . . . . . . Overloaded Fab Kills . | . . . . . . . . . . . . . Fab Network Shutdowns 1 | . . . . . . 1 . . . . . . Hacking | -11 -10 -10 -10 -9 -8 -7 -7 -6 -6 -6 -6 -5 --------- Run | Scr Mat Min Exi Min Mat Fac Sto Fac Low Low Dat Pro Machines Accessed 31 | . 2 . 1 . 2 10 3 9 . . 4 . Terminals 19 | . 2 . . . 2 6 3 6 . . . . Fabricators 4 | . . . . . . 4 . . . . . . Repair Stations . | . . . . . . . . . . . . . Recycling Units . | . . . . . . . . . . . . . Scanalyzers 2 | . . . . . . . . 2 . . . . Garrison Access 1 | . . . . . . . . 1 . . . . Total Hacks 99 | . 4 . 3 . 9 20 9 24 . . 30 . Successful 66 | . 2 . 3 . 5 9 5 12 . . 30 . Failed 32 | . 2 . . . 3 11 4 12 . . . . Catastrophic 7 | . . . . . 1 6 . . . . . . Database Lockouts 1 | . . . . . 1 . . . . . . . Manual 43 | . 4 . . . 8 9 6 16 . . . . Terminals 47 | . 4 . . . 9 9 9 16 . . . . Fabricators 11 | . . . . . . 11 . . . . . . Repair Stations . | . . . . . . . . . . . . . Recycling Units . | . . . . . . . . . . . . . Scanalyzers 6 | . . . . . . . . 6 . . . . Garrison Access 2 | . . . . . . . . 2 . . . . Terminal Hacks 52 | . 2 . 3 . 5 2 5 5 . . 30 . Record 14 | . . . 3 . . . . . . . 11 . Part Schematic 16 | . . . . . 2 2 3 1 . . 8 . Robot Schematic 8 | . . . . . . . . . . . 8 . Prototype ID Bank 4 | . . . . . . . 1 . . . 3 . Open Door 1 | . . . . . . . 1 . . . . . Branch Access Points 1 | . . . . . . . . 1 . . . . Unreport Threat 3 | . . . . . . . . 3 . . . . Hauler Manifests 1 | . . . . . 1 . . . . . . . Zone Layout 4 | . 2 . . . 2 . . . . . . . Fabricator Hacks 7 | . . . . . . 7 . . . . . . Load Schematic 2 | . . . . . . 2 . . . . . . Build 5 | . . . . . . 5 . . . . . . Repair Station Hacks . | . . . . . . . . . . . . . Recycling Unit Hacks . | . . . . . . . . . . . . . Scanalyzer 6 | . . . . . . . . 6 . . . . Insert Component 3 | . . . . . . . . 3 . . . . Analyze 3 | . . . . . . . . 3 . . . . Garrison Access Hacks . | . . . . . . . . . . . . . Unauthorized Hacks 1 | . . . . . . . . 1 . . . . Terminals 1 | . . . . . . . . 1 . . . . Botnet 1 | . . . . . . . . 1 . . . . Fabricators . | . . . . . . . . . . . . . Repair Stations . | . . . . . . . . . . . . . Recycling Units . | . . . . . . . . . . . . . Scanalyzers . | . . . . . . . . . . . . . Garrison Access . | . . . . . . . . . . . . . Data Cores Recovered 1 | . . . . . . . 1 . . . . . Used . | . . . . . . . . . . . . . Hacking Detections 20 | . 2 . . . 2 8 1 7 . . . . Full Trace Events . | . . . . . . . . . . . . . Feedback Events . | . . . . . . . . . . . . . Feedback Blocked . | . . . . . . . . . . . . . Robot Schematics Acquired 8 | . . . . . . . . . . . 8 . Robots Built . | . . . . . . . . . . . . . Matter . | . . . . . . . . . . . . . Time . | . . . . . . . . . . . . . Total Robot Build Rating . | . . . . . . . . . . . . . Part Schematics Acquired 17 | . . . . . 2 2 2 3 . . 8 . Parts Built 6 | . . . . . . 6 . . . . . . Matter 628 | . . . . . . 628 . . . . . . Time 314 | . . . . . . 314 . . . . . . Total Part Build Rating 20 | . . . . . . 20 . . . . . . Parts Repaired . | . . . . . . . . . . . . . Time . | . . . . . . . . . . . . . Parts Recycled . | . . . . . . . . . . . . . Recycled Matter . | . . . . . . . . . . . . . Retrieved Matter . | . . . . . . . . . . . . . Retrieved Components . | . . . . . . . . . . . . . Parts Scanalyzed 2 | . . . . . . . . 2 . . . . Part Schematics Acquired 2 | . . . . . . . . 2 . . . . Parts Damaged 1 | . . . . . . . . 1 . . . . Bothacking | -11 -10 -10 -10 -9 -8 -7 -7 -6 -6 -6 -6 -5 ------------ Run | Scr Mat Min Exi Min Mat Fac Sto Fac Low Low Dat Pro Used RIF Installer . | . . . . . . . . . . . . . Robots Hacked . | . . . . . . . . . . . . . Non-combat . | . . . . . . . . . . . . . Combat . | . . . . . . . . . . . . . Robot Hacks Applied . | . . . . . . . . . . . . . Relay Couplers Released 2 | . . . . . . . 2 . . . . . Machine Destruction 2 | . . . . . . . 2 . . . . . Robots Rewired 2 | . . . . . . . . . . 2 . . Allies Hacked 1 | . . . . . . . . . . 1 . . Hacks Repelled . | . . . . . . . . . . . . . Allies | -11 -10 -10 -10 -9 -8 -7 -7 -6 -6 -6 -6 -5 -------- Run | Scr Mat Min Exi Min Mat Fac Sto Fac Low Low Dat Pro Total Allies 25 | . . 2 . 1 . 3 16 . . 2 . 1 Largest Group 12 | . . 2 2 1 . 3 12 . . 2 . 1 Highest-Rated Group 299 | . . 41 41 31 . 93 299 . . 61 . 94 Highest-Rated Ally 99 | . . 31 31 31 . 31 99 . . 32 . 94 Total Orders . | . . . . . . . . . . . . . Ally Attacks 193 | . . 4 . . . 50 121 . . 4 . 14 Total Damage 4732 | . . 86 . . . 653 3454 . . 72 . 467 Kills 38 | . . 2 . . . 7 26 . . 1 . 2 Allies Corrupted 1 | . . . . . . 1 . . . . . . Allies Melted . | . . . . . . . . . . . . . Intel | -11 -10 -10 -10 -9 -8 -7 -7 -6 -6 -6 -6 -5 ------- Run | Scr Mat Min Exi Min Mat Fac Sto Fac Low Low Dat Pro Robot Analysis Total . | . . . . . . . . . . . . . Derelict Logs Recovered 7 | . . 2 . . . . . . 1 2 . 2 Drone Launches . | . . . . . . . . . . . . . Drone Recoveries . | . . . . . . . . . . . . . Exploration | -11 -10 -10 -10 -9 -8 -7 -7 -6 -6 -6 -6 -5 ------------- Run | Scr Mat Min Exi Min Mat Fac Sto Fac Low Low Dat Pro Turns Passed 9072 | 40 398 428 135 55 234 2912 1347 1955 223 595 81 669 Spaces Moved 6988 | 35 368 381 133 43 134 1424 719 2171 345 447 82 706 Core 15 | 1 . . . . . . . . . . . 14 Treads . | . . . . . . . . . . . . . Legs 2201 | . . . . . 45 1424 719 13 . . . . Wheels 1048 | 34 368 381 133 43 89 . . . . . . . Hover 3724 | . . . . . . . . 2158 345 447 82 692 Flight . | . . . . . . . . . . . . . Fastest Speed 40 | 50 80 90 100 100 120 150 153 40 48 48 100 48 Average Speed 96 | 79 84 96 100 100 140 154 153 56 48 75 100 78 Slowest Speed 600 | 80 90 100 100 100 180 210 155 153 48 106 100 600 Overloaded Moves . | . . . . . . . . . . . . . Propulsion Burnouts . | . . . . . . . . . . . . . Robots Hopped . | . . . . . . . . . . . . . Cave-ins Triggered . | . . . . . . . . . . . . . Exploration Rate (%) 53 | 3 74 78 51 13 14 41 91 51 60 66 69 84 Regions Visited 12 Branch Regions 8 Pre-discovered Areas 3 | . . . 1 1 . . . . . . 1 . Known Exits Taken 2 | . . . 1 . . . . 1 . . . . Unknown Exits Taken 10 | 1 1 1 . 1 1 1 1 . 1 1 1 . Scrap Searched 9 | . . 2 . . . . . . . 3 . 4 Spaces Dug 138 | . 1 5 . . 1 24 2 77 6 3 . 19 Terrain Destroyed 147 | . 1 5 . 9 1 24 2 77 6 3 . 19 Melee 138 | . 1 5 . . 1 24 2 77 6 3 . 19 Projectile . | . . . . . . . . . . . . . AOE 9 | . . . . 9 . . . . . . . . Actions | -11 -10 -10 -10 -9 -8 -7 -7 -6 -6 -6 -6 -5 --------- Run | Scr Mat Min Exi Min Mat Fac Sto Fac Low Low Dat Pro Total 8461 | 44 417 412 135 48 161 1903 850 2642 382 623 81 763 Wait 661 | . 20 9 . . 12 243 23 211 22 109 . 12 Move 6976 | 34 367 380 132 42 133 1423 718 2170 344 446 81 706 Hop . | . . . . . . . . . . . . . Pick Up 56 | 4 1 3 3 . 1 19 2 17 . 3 . 3 Fast Attach 50 | 6 3 . . . 3 18 2 14 . 4 . . Attach 41 | . 1 3 . . 2 9 . 14 1 5 . 6 Detach 14 | . 1 2 . . 1 6 . 4 . . . . Swap 39 | . 2 . . 2 . 17 3 15 . . . . Drop 70 | . . . . . . 32 6 32 . . . . Fire 19 | . 18 . . 1 . . . . . . . . Melee 527 | . 4 14 . 3 9 136 91 165 15 54 . 36 Ram 1 | . . 1 . . . . . . . . . . Kick . | . . . . . . . . . . . . . Crush . | . . . . . . . . . . . . . Escape Stasis 5 | . . . . . . . 5 . . . . . Rewire 2 | . . . . . . . . . . 2 . . Trap . | . . . . . . . . . . . . . Miscellaneous . | . . . . . . . . . . . . . Route ------- -11/Scrapyard -10/Materials (discovered 3 exits: *Mat x2 / [*Min]) -10/Mines (discovered 3 exits: *Mat x2 / *Exi) -10/Exiles (discovered 2 exits: *Min x2) -9/Mines -8/Materials -7/Factory (discovered 2 exits: *Fac / *Sto) -7/Storage -6/Factory (discovered 5 exits: [*Fac x3] / *Low x2) -6/Lower Caves -6/Lower Caves (discovered 2 exits: [*Fac] / *Dat) -6/Data Miner -5/Proximity Caves History --------- Turn | Location | Event 14 | -11/Scrapyard | Discovered new exit (range 16) 41 | -11/Scrapyard | Entered Materials 188 | -10/Materials | Discovered new exit (range 15) 296 | -10/Materials | Discovered new exit (range 14) 317 | -10/Materials | Build established: Mutant 430 | -10/Materials | Discovered new exit (range 10) 439 | -10/Materials | Entered Mines 446 | -10/Mines | Received a Rocket Launcher from a helpful Derelict 488 | -10/Mines | Identified exit to Materials 836 | -10/Mines | Discovered exit to Materials (range 8) 852 | -10/Mines | Discovered new exit (range 3) 862 | -10/Mines | Deemed a non-threat by the Exiles lab entrance 867 | -10/Mines | Entered Exiles 867 | -10/Exiles | Accompanied by 2 allies 868 | -10/Exiles | Identified exit to Mines 895 | -10/Exiles | Met 8R-AWN 897 | -10/Exiles | Led the pair of lost Derelicts to a safe place 912 | -10/Exiles | Met EX-HEX 951 | -10/Exiles | Met EX-DEC 955 | -10/Exiles | Learned location of Zion (-7) 1002 | -10/Exiles | Entered Mines 1005 | -9/Mines | Escorted by a lone wolf Derelict 1025 | -9/Mines | Learned location of Storage (-7) 1041 | -9/Mines | Met a Derelict bent on vengeance 1051 | -9/Mines | Discovered new exit (range 6) 1057 | -9/Mines | Entered Materials 1057 | -8/Materials | Evolved 4 slots: Propulsion x1, Utility x2, Weapon x1 1173 | -8/Materials | Discovered new exit (range 17) 1173 | -8/Materials | Central database locked down 1291 | -8/Materials | Entered Factory 1291 | -7/Factory | Evolved 2 slots: Utility x2 1409 | -7/Factory | Discovered new exit (range 16) 1702 | -7/Factory | Build established: Assassin 2146 | -7/Factory | Fabricated Katana? 2272 | -7/Factory | Fabricated Katana (x2) 2871 | -7/Factory | Build established: Mutant 2965 | -7/Factory | Fabricated Imp. Melee Analysis Suite (x1) 3051 | -7/Factory | Fabricated Imp. Melee Analysis Suite? 3335 | -7/Factory | Allied Derelicts emerged from ambush trap array 3724 | -7/Factory | Local fabrication network quarantined 3919 | -7/Factory | System corruption reached 10% 4180 | -7/Factory | Discovered new exit (range 5) 4203 | -7/Factory | Entered Storage 4213 | -7/Storage | Met 01-MTF 4499 | -7/Storage | Discovered new exit (range 16) 4843 | -7/Storage | Assisted by bots powering up and referring to "LRC-V3" 5156 | -7/Storage | Build established: Commander-Mutant 5164 | -7/Storage | Garrison activated, responded to threat 5429 | -7/Storage | Found Prototype Protection 5429 | -7/Storage | Identified Lgt. Regenerative Plating 5526 | -7/Storage | Build established: Mutant 5550 | -7/Storage | Entered Factory 5550 | -6/Factory | Accompanied by 1 ally 5550 | -6/Factory | Evolved 2 slots: Propulsion x1, Utility x1 5555 | -6/Factory | 01-MTF left 5653 | -6/Factory | Discovered new exit (range 15) 5946 | -6/Factory | Garrison activated, responded to threat 6009 | -6/Factory | Spotted B-75 Beast 6182 | -6/Factory | Discovered new exit (range 15) 6233 | -6/Factory | Discovered new exit (range 16) 6247 | -6/Factory | Found Prototype Processor 6247 | -6/Factory | Identified Exp. Signal Interpreter 6746 | -6/Factory | Lost 6 parts (1p4n1w) 7004 | -6/Factory | Identified exit to Lower Caves 7251 | -6/Factory | Discovered new exit (range 13) 7505 | -6/Factory | Entered Lower Caves 7550 | -6/Lower Caves | Attracted the attention of an 0b10 checkpoint 7591 | -6/Lower Caves | Learned location of 1 exit from Factory 7670 | -6/Lower Caves | Encountered a Warlord checkpoint 7721 | -6/Lower Caves | Discovered new exit (range 15) 7728 | -6/Lower Caves | Entered another Lower Caves area 7761 | -6/Lower Caves | Discovered new exit (range 14) 7777 | -6/Lower Caves | Lgt. Fission Core stolen by Master Thief 7782 | -6/Lower Caves | Imp. Gravmag System stolen by Master Thief 7872 | -6/Lower Caves | Learned Factory terminal intel 7875 | -6/Lower Caves | Attracted the attention of an 0b10 outpost 7975 | -6/Lower Caves | Destroyed 10 combat bots 7988 | -6/Lower Caves | Lost 4 parts (1p1n2u) 8209 | -6/Lower Caves | Discovered new exit (range 12) 8264 | -6/Lower Caves | Learned 8 Factory zone layouts 8323 | -6/Lower Caves | Entered Data Miner 8323 | -6/Data Miner | Discovered new exit (range 6) 8342 | -6/Data Miner | Met Data Miner 8362 | -6/Data Miner | Learned location of Section 7 (-2) 8362 | -6/Data Miner | Acquired the access code to Warlord's prototype stash 8380 | -6/Data Miner | Received God Mode back door access code from Data Miner 8404 | -6/Data Miner | Entered Proximity Caves 8415 | -5/Proximity Caves | Escorted by Enhanced Grunt 8458 | -5/Proximity Caves | Lost 5 parts (1n3u1w) 8512 | -5/Proximity Caves | Attracted the attention of an 0b10 checkpoint 8572 | -5/Proximity Caves | Core integrity fell below 50% 8639 | -5/Proximity Caves | Learned Factory security intel 8735 | -5/Proximity Caves | Lost 3 parts (1p1n1u) 8780 | -5/Proximity Caves | Learned 4 Factory zone layouts 9062 | -5/Proximity Caves | Lost 9 parts (1p3n2u3w) 9067 | -5/Proximity Caves | Core integrity fell below 20% 9073 | -5/Proximity Caves | Destroyed by D-63 Destroyer with Heavy Rocket Launcher Last Messages --------------- 09002_ Target Drone destroyed. 09015_ Great Axe destroyed. 09015_ Microactuators destroyed. 09015_ Imp. Gravmag System destroyed. 09015_ Imp. Maneuvering Thrusters destroyed. 09017_ Power Sword destroyed. 09020_ Dispatcher launches Target Drone into the air. 09022_ Imp. Gravmag System destroyed. 09026_ Neutrino Core destroyed. 09030_ Dispatcher launches Target Drone into the air. 09031_ Katana destroyed. 09032_ Target Drone destroyed. 09040_ Dispatcher launches Target Drone into the air. 09041_ Target Drone destroyed. 09044_ VW6PMNC7R2I8TA FL1RUMYQ|B<%LE>QXHGQC 09060_ Data Receptor disabled. 09064_ I-47 Archangel destroyed. 09068_ Data Receptor disabled. 09070_ Sml. Storage Unit destroyed. [Achievement: Tester] Map ----- +----------------------------------------------------+ | ?????????????????????????????????????????????????? | | ?????????????????????????????????????????????????? | | ?????????????????????????????????????????????????? | | ?????????????????????????????????????????????????? | | ?????????????????????????????????????????????????? | | ?????????????????????????????????????????????????? | | ?????????????????????????????????????????????????? | | ?????????????????????????????????????????????????? | | ?????????????????????????????????????????????????? | | ?????????????????????????????????????????????????? | | ?????????????????????????????????????????????????? | | ?????????????????????????????????????????????????? | | ?????????????????????????????????????????????????? | | ?????????????????????????????????????????????????? | | ?????????????????????????????????????????????????? | | ?????????????????????????????????????????????????? | | ??????????????????############???????????????????? | | ?????????????????? #"""""""#???????????????????? | | ??????????????????# #" """ "#???????????????????? | | ??????????????????# #" """ "#???????????????????? | | ??????????????????# #"""""""#???????????????????? | | ??????????????????# #"""""""#???????????????????? | | ??????????????????# #"" ""#???????????????????? | | ??????????????????# #"" ""#???????????????????? | | ??????????????????# #?" "???????????? #??????? | | ????############### ####@#### #??????? | | ????# #??????? | | ????# #??????? | | ????# ##???????? | | ????# #????????? | | ????# d #????????? | | ????# #????????? | | ??### #????????? | | ??# #????????? | | ??# #????????? | | ??# #????????? | | ??# #????????? | | ??# #### #????????? | | ??# d #????#????????? | | ??# #?????????????? | | ??# #?????????????? | | ### #?????????????? | | < #?????????????? | | i #?????????????? | | ??????????????? | | = ??????????????? | | ??? ??????????????? | | ????? ??????????????? | | ????????? ###???????????? | | ????????? ???????????? | +----------------------------------------------------+ Best States ------------- Heat Dissipation 37 Energy Generation 19 Energy Capacity 315 Matter Stores 300 Matter Capacity 300 Sight Range 22 Terrain Scan Range 20 Terrain Scan Density 210 Armor Coverage 450 Resistance: KI 20 Resistance: TH 20 Resistance: EX 20 Resistance: EM 20 Resistance: I 20 Resistance: S 20 Resistance: P 20 Melee Speed Boost 20 Evasion (%) 65 Melee Accuracy 14 Target Analysis 5 Offensive Hacking 10 Item Schematics ----------------- Katana | -8/Materials | Hacked Imp. Hover Unit | -8/Materials | Hacked Imp. Melee Analysis Suite | -7/Factory | Hacked Force Booster | -7/Factory | Hacked Actuator Array | -7/Storage | Hacked Microactuators | -7/Storage | Hacked Gravmag System | -6/Factory | Scanalyzed Power Sword | -6/Factory | Scanalyzed Imp. Gravmag System | -6/Factory | Hacked Combat Drone Bay | -6/Data Miner | Free Lgt. Regenerative Plating | -6/Data Miner | Free Cmb. Gravmag System | -6/Data Miner | Free Exp. Terrain Scanner | -6/Data Miner | Free Exp. Targeting Computer | -6/Data Miner | Free Exp. ECM Suite | -6/Data Miner | Free Cloaking Device | -6/Data Miner | Free Plasma Sword | -6/Data Miner | Free Robot Schematics ------------------ S-27 Virus | -6/Data Miner | Free G-50 Soldier | -6/Data Miner | Free G-67 Veteran | -6/Data Miner | Free X-72 Disruptor | -6/Data Miner | Free H-66 Slayer | -6/Data Miner | Free P-70 Sage | -6/Data Miner | Free I-36 Angel | -6/Data Miner | Free I-47 Archangel | -6/Data Miner | Free Fabricated ------------ Katana | x2 | -7/Factory Katana | x2 | -7/Factory Imp. Melee Analysis Suite | x1 | -7/Factory Imp. Melee Analysis Suite | x1 | -7/Factory Alien Tech Used ----------------- None Achievements -------------- Deadly Force Melee Specialist Tester Challenges ------------ None Game ------ Seed FlightCoolantWheel Manual? 0 Play Time 01:38:06 Cumulative 66.0 hours Start 2020.07.24 @ 22:39:20 End 2020.07.25 @ 13:28:24 Sessions 3 Manual Loads 0 Difficulty Adventurer Special Mode None Game No. 71 Rogue 1 Adventurer 70 Explorer 0 Win Type - Total 2 Types 2/0/0/0/0/0/0 Lore% 32 Gallery% 50 Achievement% 44 Wizard Run 0 Options --------- ASCII 0 Keyboard 1 Movement Numpad Keybinds 0 Fullscreen 1 Font 18/SmallcapsGlow Map View 76x50 Tactical HUD 1 Map Filters NONE Filters NONE Steam 1 RUN: e09334c6-087d-41e3-a801-f0571bc2098d